fUST/lending_fUST_20251226
["ID","MTS","AMOUNT","RATE_DAILY","PERIOD"]
[399831648,1766712647256,-239.7985273,0.00017444,2]
[399831649,1766712647266,-500.0,0.00017444,2]
[399831650,1766712647276,-154.08330995,0.00017444,2]
[399831652,1766712844088,150.0,8.413e-05,2]
[399831655,1766713305006,-5000.0,8.097e-05,2]
[399831656,1766713305422,-300.0,8.179e-05,2]
[399831657,1766713305451,-535.0,8.18e-05,2]
[399831658,1766713305483,-150.0,8.252e-05,2]
[399831659,1766713305512,-150.0,8.297e-05,2]
[399831660,1766713305542,-300.0,8.343e-05,2]
[399831661,1766713305572,-300.0,8.343e-05,2]
[399831662,1766713305603,-300.0,8.343e-05,2]
[399831663,1766713305633,-300.0,8.343e-05,2]
[399831664,1766713305662,-300.0,8.343e-05,2]
[399831665,1766713305691,-300.0,8.343e-05,2]
[399831666,1766713305720,-300.0,8.343e-05,2]
[399831667,1766713305764,-300.0,8.343e-05,2]
[399831668,1766713305795,-300.0,8.343e-05,2]
[399831669,1766713305826,-300.0,8.343e-05,2]
[399831670,1766713305860,-300.0,8.343e-05,2]
[399831671,1766713305890,-300.0,8.343e-05,2]
[399831672,1766713305921,-230.01,8.343e-05,2]
[399831673,1766713306098,-69.99,8.343e-05,2]
[399831674,1766713306128,-300.0,8.343e-05,2]
[399831675,1766713306159,-300.0,8.343e-05,2]
[399831676,1766713306190,-600.0,8.509e-05,2]
[399831677,1766713318796,5000.0,8.582e-05,2]
[399831678,1766713320186,150.0,6.492e-05,2]
[399831679,1766713320576,150.0,6.801e-05,2]
[399831680,1766713320993,150.0,7.111e-05,2]
[399831681,1766713321397,150.0,7.42e-05,2]
[399831682,1766713321815,150.0,7.729e-05,2]
[399831683,1766713322208,150.0,8.038e-05,2]
[399831684,1766713781113,-5000.0,7.859e-05,2]
[399831685,1766713781525,-1207.16926057,7.938e-05,2]
[399831686,1766713781557,-290.45419531,8.223e-05,2]
[399831687,1766713781589,-150.0,8.347e-05,2]
[399831688,1766713787339,5000.0,8.692e-05,2]
[399831720,1766713831821,-400.0,8.686e-05,2]
[399831721,1766713831835,-871.25391362,8.686e-05,2]
[399831722,1766713831846,-1052.5673739,8.686e-05,2]
[399831742,1766713837661,-150.0,8.387e-05,2]
[399831744,1766713837672,-877.0,8.686e-05,2]
[399831748,1766713837714,-1799.17871248,8.686e-05,2]
[399831749,1766713837724,-543.0,8.774e-05,2]
[399831750,1766713837734,-500.0,9.07e-05,2]
[399831751,1766713837743,-500.0,0.00010291,2]
[399831752,1766713837753,-500.0,0.00010529,2]
[399831753,1766713837763,-999.0,0.00012011,2]
[399831754,1766713837773,-300.0,0.00012341,2]
[399831755,1766713837783,-300.0,0.00012341,2]
[399831756,1766713837792,-300.0,0.00012342,2]
[399831757,1766713837802,-300.0,0.00012342,2]
[399831758,1766713837811,-300.0,0.00012342,2]
[399831759,1766713837821,-300.0,0.00012342,2]
[399831760,1766713837831,-300.0,0.00012342,2]
[399831761,1766713837841,-300.0,0.00012342,2]
[399831762,1766713837851,-300.0,0.00012342,2]
[399831763,1766713837860,-300.0,0.00012342,2]
[399831764,1766713837869,-300.0,0.00012342,2]
[399831765,1766713837879,-300.0,0.00012342,2]
[399831766,1766713837889,-300.0,0.00012342,2]
[399831767,1766713837899,-300.0,0.00012342,2]
[399831768,1766713837909,-300.0,0.00012342,2]
[399831769,1766713837919,-300.0,0.00012342,2]
[399831770,1766713837929,-300.0,0.00012342,2]
[399831771,1766713837940,-255.68249592,0.00012342,2]
[399831772,1766713837949,-500.0,0.0001236,2]
[399831773,1766713837958,-500.0,0.00014886,2]
[399831774,1766713837971,-500.0,0.00015113,2]
[399831775,1766713837981,-500.0,0.00015156,2]
[399831776,1766713837991,-1663.00289882,0.00015549,2]
[399831777,1766713838001,-1099.03576295,0.0001555,2]
[399831778,1766713838011,-250.0,0.000159,2]
[399831779,1766713838021,-500.0,0.000168,2]
[399831780,1766713838031,-1476.66052497,0.00017095,2]
[399831781,1766713838042,-2150.88298411,0.00017244,2]
[399831782,1766713838053,-165.76046172,0.00017316,2]
[399831783,1766713838063,-399.10215396,0.00017338,2]
[399831784,1766713838073,-500.0,0.00017338,2]
[399831785,1766713838082,-500.0,0.00017338,2]
[399831786,1766713838092,-500.0,0.00017338,2]
[399831787,1766713838115,-530.94577299,0.00017338,2]
[399831788,1766713838128,-500.0,0.00017338,2]
[399831789,1766713838139,-500.0,0.00017338,2]
[399831790,1766713838149,-500.0,0.00017338,2]
[399831791,1766713838159,-500.0,0.00017338,2]
[399831792,1766713838170,-500.0,0.00017338,2]
[399831793,1766713838430,-500.0,0.00017338,2]
[399831794,1766713838441,-500.0,0.00017338,2]
[399831795,1766713838451,-500.0,0.00017338,2]
[399831796,1766713838462,-500.0,0.00017338,2]
[399831797,1766713838472,-500.0,0.00017338,2]
[399831798,1766713838482,-500.0,0.00017338,2]
[399831799,1766713838492,-500.0,0.00017338,2]
[399831800,1766713838506,-500.0,0.00017338,2]
[399831801,1766713838518,-500.0,0.00017338,2]
[399831802,1766713838534,-500.0,0.00017338,2]
[399831803,1766713838545,-500.0,0.00017338,2]
[399831804,1766713838556,-500.0,0.00017338,2]
[399831805,1766713838567,-610.08458196,0.00017338,2]
[399831806,1766713838582,-500.0,0.00017338,2]
[399831807,1766713838593,-500.0,0.00017338,2]
[399831808,1766713838604,-500.0,0.00017338,2]
[399831809,1766713838614,-500.0,0.00017338,2]
[399831810,1766713838625,-500.0,0.00017338,2]
[399831811,1766713838635,-500.0,0.00017338,2]
[399831812,1766713838647,-500.0,0.00017338,2]
[399831813,1766713838657,-500.0,0.00017338,2]
[399831814,1766713838669,-500.0,0.00017338,2]
[399831815,1766713838679,-500.0,0.00017338,2]
[399831816,1766713838690,-500.0,0.00017343,2]
[399831817,1766713838701,-631.97202846,0.00017343,2]
[399831818,1766713838712,-589.52173369,0.00017343,2]
[399831819,1766713838722,-385.42138595,0.00017343,2]
[399831820,1766713838733,-39585.9433795,0.00017344,2]
[399831821,1766713838746,-14257.71440085,0.00017344,2]
[399831822,1766713838796,-2514.17811519,0.00017344,2]
[399831823,1766713838808,-176069.38697745,0.00017344,2]
[399831824,1766713838821,-9429.34152802,0.00017344,2]
[399831841,1766713839981,-250.0,0.00017344,2]
[399831847,1766713840034,-15966.79397612,0.00017344,2]
[399832374,1766713900901,-42200.63138751,0.00017344,2]
[399832375,1766713900921,-16858.97318532,0.00017344,2]
[399832376,1766713900933,-66480.59240118,0.00017344,2]
[399832377,1766714042600,151.3,4.4e-05,2]
[399832378,1766714048953,-151.3,4.5e-05,2]
[399832379,1766714048979,-18.99114401,4.7e-05,2]
[399832380,1766714050645,-132.30885599,4.7e-05,2]
[399832381,1766714050670,-151.3,4.8e-05,2]
[399832382,1766714050696,-151.3,4.9e-05,2]
[399832383,1766714050719,-151.3,5.1e-05,2]
[399832384,1766714050742,-35.5416309,5.2e-05,2]
[399832385,1766714053001,-115.7583691,5.2e-05,2]
[399832386,1766714053025,-95.55939449,5.3e-05,2]
[399832387,1766714062887,-504.19817092,5.247e-05,2]
[399832388,1766714065559,-300.0,5.247e-05,2]
[399832389,1766714068309,-304.62308825,5.247e-05,2]
[399832390,1766714069904,-703.47921399,5.247e-05,2]
[399832391,1766714073248,-317.24804787,5.247e-05,2]
[399832392,1766714075566,-183.49966263,5.247e-05,2]
[399832393,1766714077720,-252.64548378,5.247e-05,2]
[399832394,1766714079818,-402.80386082,5.247e-05,2]
[399832395,1766714084382,-318.18380445,5.247e-05,2]
[399832396,1766714085974,-176.18888576,5.247e-05,2]
[399832397,1766714088428,-394.96807965,5.247e-05,2]
[399832398,1766714091768,-199.93475873,5.247e-05,2]
[399832399,1766714093785,-238.01316205,5.247e-05,2]
[399832400,1766714095412,-251.26341123,5.247e-05,2]
[399832401,1766714101230,-246.71556781,5.247e-05,2]
[399832402,1766714102812,-206.23480206,5.247e-05,2]
[399832403,1766714102836,-140.97276184,5.5e-05,2]
[399832404,1766714117467,164.96,4.4e-05,2]
[399832405,1766714137824,-448.48447247,5.247e-05,2]
[399832406,1766714141663,-236.20781382,5.247e-05,2]
[399832407,1766714143931,-298.31154285,5.247e-05,2]
[399832408,1766714145649,-292.39421842,5.247e-05,2]
[399832409,1766714149216,-737.0287028,5.247e-05,2]
[399832410,1766714150770,-250.28111604,5.247e-05,2]
[399832411,1766714153575,-525.02288117,5.247e-05,2]
[399832412,1766714156486,-278.08591794,5.247e-05,2]
[399832413,1766714159857,-197.09218593,5.247e-05,2]
[399832414,1766714164733,-666.0,5.247e-05,2]
[399832415,1766714165515,153.18,4.4e-05,2]
[399832416,1766714166960,-153.18,4.6e-05,2]
[399832417,1766714166986,-146.82,4.7e-05,2]
[399832418,1766714171557,-6.36,4.7e-05,2]
[399832419,1766714171582,-153.18,4.9e-05,2]
[399832420,1766714171605,-21.05410517,5e-05,2]
[399832421,1766714173113,-132.12589483,5e-05,2]
[399832422,1766714173138,-24.45236054,5.2e-05,2]
[399832423,1766714177474,-128.72763946,5.2e-05,2]
[399832424,1766714177498,-485.00210283,5.247e-05,2]
[399832425,1766714179681,-168.73784544,5.247e-05,2]
[399832426,1766714181282,-404.72993837,5.247e-05,2]
[399832427,1766714184529,-12.62126192,5.247e-05,2]
[399832428,1766714184552,-150.0,5.274e-05,2]
[399832429,1766714184575,-14.16304994,5.3e-05,2]
[399832430,1766714188771,-139.01695006,5.3e-05,2]
[399832431,1766714188795,-45.67273077,5.5e-05,2]
[399832432,1766714197916,-230.48331407,5.445e-05,2]
[399832433,1766714199514,-217.45762535,5.445e-05,2]
[399832434,1766714201044,-298.32210853,5.445e-05,2]
[399832435,1766714203920,-496.10287113,5.445e-05,2]
[399832436,1766714206327,-349.60434305,5.445e-05,2]
[399832437,1766714209227,-245.96685961,5.445e-05,2]
[399832438,1766714212532,-226.03353956,5.445e-05,2]
[399832439,1766714216646,-300.0,5.445e-05,2]
[399832440,1766714220033,-313.91690773,5.445e-05,2]
[399832441,1766714221648,-335.2996606,5.445e-05,2]
[399832442,1766714225107,-450.04624967,5.445e-05,2]
[399832443,1766714229568,-300.0,5.445e-05,2]
[399832444,1766714232511,-377.26215459,5.445e-05,2]
[399832445,1766714235004,150.54,4.4e-05,2]
[399832446,1766714236306,-150.54,4.8e-05,2]
[399832447,1766714236330,-150.54,5.3e-05,2]
[399832448,1766714236354,-78.70237575,5.445e-05,2]
[399832449,1766714238111,-169.5106173,5.445e-05,2]
[399832450,1766714240871,-275.18842409,5.445e-05,2]
[399832451,1766714260116,-336.10294897,5.445e-05,2]
[399832452,1766714260145,-150.54,5.7e-05,2]
[399832453,1766714260176,-150.54,6.1e-05,2]
[399832454,1766714260204,-150.54,6.6e-05,2]
[399832455,1766714260237,-150.54,7e-05,2]
[399832456,1766714260267,-250.0,7.261e-05,2]
[399832457,1766714260296,-177.0,7.274e-05,2]
[399832458,1766714260326,-150.54,7.4e-05,2]
[399832459,1766714260357,-150.0,7.83e-05,2]
[399832460,1766714260387,-150.54,7.9e-05,2]
[399832461,1766714260652,-298.87317882,7.961e-05,2]
[399832462,1766714260682,-300.0,8.2e-05,2]
[399832463,1766714260710,-300.0,8.2e-05,2]
[399832464,1766714260741,-200.24,8.203e-05,2]
[399832465,1766714260771,-150.54,8.3e-05,2]
[399832466,1766714260799,-982.0,8.363e-05,2]
[399832467,1766714260830,-300.0,8.364e-05,2]
[399832468,1766714260863,-300.0,8.364e-05,2]
[399832469,1766714260893,-300.0,8.364e-05,2]
[399832470,1766714261205,-300.0,8.364e-05,2]
[399832471,1766714261236,-300.0,8.364e-05,2]
[399832472,1766714261285,-300.0,8.364e-05,2]
[399832473,1766714261318,-300.0,8.364e-05,2]
[399832474,1766714261350,-300.0,8.364e-05,2]
[399832475,1766714261381,-300.0,8.364e-05,2]
[399832476,1766714261414,-300.0,8.364e-05,2]
[399832477,1766714261445,-300.0,8.364e-05,2]
[399832478,1766714261475,-300.0,8.364e-05,2]
[399832479,1766714261506,-300.0,8.364e-05,2]
[399832480,1766714261537,-300.0,8.364e-05,2]
[399832481,1766714261570,-300.0,8.364e-05,2]
[399832482,1766714261602,-600.0,8.364e-05,2]
[399832483,1766714261634,-300.37,8.576e-05,2]
[399832484,1766714261665,-150.54,8.7e-05,2]
[399832485,1766714285129,151.88,4.4e-05,2]
[399832486,1766714303396,-151.88,4.6e-05,2]
[399832487,1766714303600,-151.88,4.8e-05,2]
[399832488,1766714303627,-151.88,5e-05,2]
[399832489,1766714303652,-151.88,5.2e-05,2]
[399832490,1766714303676,-137.31181146,5.4e-05,2]
[399832491,1766714352734,168.55,4.4e-05,2]
[399832492,1766714407633,153.13,4.4e-05,2]
[399832493,1766714422898,-153.13,4.6e-05,2]
[399832494,1766714422923,-153.13,4.9e-05,2]
[399832495,1766714422947,-153.13,5.1e-05,2]
[399832496,1766714422970,-40.61196379,5.3e-05,2]
[399832497,1766714438763,-196.61959301,5.247e-05,2]
[399832498,1766714440422,-303.38237078,5.247e-05,2]
[399832499,1766714440444,-23.04321634,5.3e-05,2]
[399832500,1766714467859,-246.90883094,5.195e-05,2]
[399832501,1766714469332,-199.02803357,5.195e-05,2]
[399832502,1766714470990,154.67,4.4e-05,2]
[399832503,1766714471612,-154.67,4.9e-05,2]
[399832504,1766714471636,-192.4261284,5.195e-05,2]
[399832505,1766714476641,-123.79493201,5.195e-05,2]
[399832506,1766714476665,-30.06146947,5.247e-05,2]
[399832507,1766714479294,-166.55812354,5.247e-05,2]
[399832508,1766714479318,-33.44187646,5.274e-05,2]
[399832509,1766714527252,150.5,4.4e-05,2]
[399832510,1766714542852,-150.5,4.7e-05,2]
[399832511,1766714542875,-150.5,4.9e-05,2]
[399832512,1766714542897,-150.5,5.2e-05,2]
[399832513,1766714542920,-48.5,5.274e-05,2]
[399832514,1766714590053,153.47,4.4e-05,2]
[399832515,1766714647864,150.65,4.4e-05,2]
[399832516,1766714710004,153.27,4.4e-05,2]
[399832517,1766714743850,-153.27,4.8e-05,2]
[399832518,1766714743874,-68.05812354,5.274e-05,2]
[399832519,1766714743896,-153.27,5.3e-05,2]
[399832520,1766714743919,-153.27,5.7e-05,2]
[399832521,1766714743942,-153.27,6.1e-05,2]
[399832522,1766714743964,-153.27,6.6e-05,2]
[399832523,1766714743985,-153.27,7e-05,2]
[399832524,1766714744008,-177.0,7.274e-05,2]
[399832525,1766714744030,-153.27,7.4e-05,2]
[399832526,1766714744052,-199.38157414,7.59e-05,2]
[399832527,1766714744073,-527.0,7.59e-05,2]
[399832528,1766714765518,151.43,4.4e-05,2]
[399832529,1766714765813,151.43,4.6e-05,2]
[399832530,1766714766108,151.43,4.8e-05,2]
[399832531,1766714766492,151.43,5.1e-05,2]
[399832532,1766714766770,151.43,5.3e-05,2]
[399832533,1766714767074,151.43,5.5e-05,2]
[399832534,1766714767350,151.43,5.7e-05,2]
[399832535,1766714767674,151.43,5.9e-05,2]
[399832536,1766714767911,151.43,6.1e-05,2]
[399832537,1766714768199,151.43,6.3e-05,2]
[399832538,1766714768502,151.43,6.6e-05,2]
[399832539,1766714768875,151.43,6.8e-05,2]
[399832540,1766714769179,151.43,7e-05,2]
[399832541,1766714769556,151.43,7.2e-05,2]
[399832542,1766714769843,151.43,7.4e-05,2]
[399832543,1766714770289,151.43,7.6e-05,2]
[399832545,1766714827624,151.93,4.4e-05,2]
[399832546,1766714846922,-151.93,4.7e-05,2]
[399832547,1766714846943,-151.93,4.9e-05,2]
[399832548,1766714846965,-151.93,5.2e-05,2]
[399832549,1766714846986,-151.93,5.5e-05,2]
[399832550,1766714847008,-151.93,5.7e-05,2]
[399832551,1766714847028,-151.93,6e-05,2]
[399832552,1766714847050,-88.42,6.3e-05,2]
[399832553,1766714875668,-63.51,6.3e-05,2]
[399832554,1766714875690,-151.93,6.5e-05,2]
[399832555,1766714875722,-151.93,6.8e-05,2]
[399832556,1766714881331,189.77,2.997e-05,2]
[399832557,1766714881614,189.75,2.997e-05,2]
[399832558,1766714886802,-150.0,8e-05,2]
[399832559,1766714888487,151.66,4.4e-05,2]
[399832560,1766714888859,151.66,4.7e-05,2]
[399832561,1766714889144,151.66,5e-05,2]
[399832562,1766714889571,151.66,5.3e-05,2]
[399832563,1766714889861,151.66,5.5e-05,2]
[399832564,1766714890145,91.7,5.8e-05,2]
[399832565,1766714896983,-59.96,5.8e-05,2]
[399832566,1766714897015,-151.66,6.1e-05,2]
[399832567,1766714897045,-151.66,6.4e-05,2]
[399832568,1766714897072,-151.66,6.7e-05,2]
[399832569,1766714897099,-151.66,6.9e-05,2]
[399832570,1766714897126,-151.66,7.2e-05,2]
[399832571,1766714897155,-151.66,7.5e-05,2]
[399832572,1766714897181,-30.08,7.8e-05,2]
[399832573,1766714905912,-121.58,7.8e-05,2]
[399832574,1766714905936,-151.66,8e-05,2]
[399832575,1766714915911,-150.0,8.211e-05,2]
[399832576,1766714915934,-151.66,8.3e-05,2]
[399832577,1766714915956,-151.66,8.6e-05,2]
[399832578,1766714915979,-151.66,8.9e-05,2]
[399832579,1766714916003,-183.68,8.958e-05,2]
[399832580,1766714942032,-300.0,9.037e-05,2]
[399832581,1766714942055,-300.0,9.037e-05,2]
[399832582,1766714942077,-300.0,9.037e-05,2]
[399832583,1766714942098,-100.0,9.037e-05,2]
[399832584,1766714945295,151.62,4.4e-05,2]
[399832585,1766714948489,-151.62,4.7e-05,2]
[399832586,1766714948512,-151.62,4.9e-05,2]
[399832587,1766714948536,-151.62,5.2e-05,2]
[399832588,1766714948558,-151.62,5.4e-05,2]
[399832589,1766714948580,-44.4125496,5.7e-05,2]
[399832590,1766714992921,-193.6769582,5.643e-05,2]
[399832591,1766714995251,-320.59939884,5.643e-05,2]
[399832592,1766714996999,-236.76731322,5.643e-05,2]
[399832594,1766715009424,154.69,4.4e-05,2]
[399832595,1766715018034,-154.69,4.8e-05,2]
[399832596,1766715018997,-154.69,5.2e-05,2]
[399832597,1766715019022,-135.36289845,5.5e-05,2]
[399832633,1766715031793,-19.32710155,5.5e-05,2]
[399832635,1766715031803,-982.9885857,5.643e-05,2]
[399832666,1766715033381,-1321.30243828,5.643e-05,2]
[399832667,1766715033413,-502.0,5.643e-05,2]
[399832693,1766715037865,-154.69,5.9e-05,2]
[399832694,1766715037876,-154.69,6.3e-05,2]
[399832695,1766715037886,-154.69,6.7e-05,2]
[399832696,1766715037897,-154.69,7e-05,2]
[399832697,1766715037908,-154.69,7.4e-05,2]
[399832698,1766715037920,-154.69,7.8e-05,2]
[399832699,1766715037942,-154.69,8.1e-05,2]
[399832700,1766715037956,-150.0,8.212e-05,2]
[399832701,1766715037966,-154.69,8.5e-05,2]
[399832702,1766715037976,-154.69,8.9e-05,2]
[399832703,1766715037986,-175.19,8.959e-05,2]
[399832704,1766715037996,-200.0,9.037e-05,2]
[399832705,1766715038006,-300.0,9.037e-05,2]
[399832706,1766715038016,-300.0,9.037e-05,2]
[399832707,1766715038026,-300.0,9.037e-05,2]
[399832708,1766715038037,-300.0,9.037e-05,2]
[399832709,1766715038047,-300.0,9.037e-05,2]
[399832710,1766715038057,-300.0,9.037e-05,2]
[399832711,1766715038067,-300.0,9.037e-05,2]
[399832712,1766715038077,-300.0,9.037e-05,2]
[399832713,1766715038087,-300.0,9.037e-05,2]
[399832714,1766715038098,-300.0,9.037e-05,2]
[399832715,1766715038108,-300.0,9.037e-05,2]
[399832716,1766715038119,-204.01,9.037e-05,2]
[399832717,1766715038128,-199.38157414,9.098e-05,2]
[399832718,1766715038138,-600.0,9.218e-05,2]
[399832719,1766715038149,-154.69,9.3e-05,2]
[399832720,1766715038159,-204.01,9.311e-05,2]
[399832721,1766715038169,-343.8571723,9.354e-05,2]
[399832722,1766715038187,-426.9070474,9.354e-05,2]
[399832723,1766715038197,-700.0,9.467e-05,2]
[399832724,1766715038207,-204.01,9.585e-05,2]
[399832725,1766715038217,-154.69,9.6e-05,2]
[399832726,1766715038227,-262.78,9.706e-05,2]
[399832727,1766715038237,-204.01,9.859e-05,2]
[399832728,1766715038247,-177.0,0.0001,2]
[399832729,1766715038257,-154.69,0.0001,2]
[399832730,1766715038266,-169.14536978,0.0001,2]
[399832731,1766715038277,-204.03791113,0.00010133,2]
[399832732,1766715038289,-720.0,0.0001014,2]
[399832733,1766715038300,-500.0,0.00010174,2]
[399832734,1766715038309,-192.79,0.00010174,2]
[399832735,1766715038326,-192.79,0.00010174,2]
[399832736,1766715038338,-362.611699,0.00010269,2]
[399832737,1766715038347,-350.38,0.00010452,2]
[399832738,1766715038357,-199.58095572,0.00010606,2]
[399832739,1766715038368,-700.0,0.00011044,2]
[399832740,1766715038378,-204.14688326,0.00011115,2]
[399832741,1766715038387,-864.0,0.00011153,2]
[399832742,1766715038398,-313.20375108,0.00011199,2]
[399832743,1766715038410,-124.76624892,0.00011199,2]
[399832744,1766715038420,-700.0,0.0001149,2]
[399832745,1766715038430,-525.57,0.00011945,2]
[399832746,1766715038440,-204.0,0.00012,2]
[399832747,1766715038450,-700.0,0.00012247,2]
[399832748,1766715038460,-1000.0,0.00012269,2]
[399832749,1766715038470,-3039.3658117,0.00012489,2]
[399832750,1766715038480,-500.0,0.00012489,2]
[399832751,1766715038490,-613.16,0.00012692,2]
[399832752,1766715038500,-500.0,0.00012763,2]
[399832753,1766715038510,-700.0,0.00012825,2]
[399832754,1766715038520,-500.0,0.00013037,2]
[399832755,1766715038531,-344.03563628,0.00013316,2]
[399832756,1766715038541,-700.0,0.00013348,2]
[399832757,1766715038551,-370.69593406,0.00013413,2]
[399832758,1766715038562,-500.0,0.00013413,2]
[399832759,1766715038572,-500.0,0.00013413,2]
[399832760,1766715038582,-500.0,0.00013413,2]
[399832761,1766715038592,-500.0,0.00013413,2]
[399832762,1766715038601,-500.0,0.00013413,2]
[399832763,1766715038611,-500.0,0.00013413,2]
[399832764,1766715038621,-500.0,0.00013413,2]
[399832765,1766715038631,-500.0,0.00013413,2]
[399832766,1766715038641,-500.0,0.00013413,2]
[399832767,1766715038650,-500.0,0.00013413,2]
[399832768,1766715038660,-500.0,0.00013413,2]
[399832769,1766715038670,-624.76715421,0.00013413,2]
[399832770,1766715038679,-300.0,0.00013413,2]
[399832771,1766715038689,-500.0,0.00013413,2]
[399832772,1766715038699,-500.0,0.00013413,2]
[399832773,1766715038709,-500.0,0.00013413,2]
[399832774,1766715038718,-650.0,0.00013413,2]
[399832775,1766715038728,-500.0,0.00013413,2]
[399832776,1766715038739,-500.0,0.00013413,2]
[399832777,1766715038748,-700.76,0.00013438,2]
[399832778,1766715038758,-1000.0,0.00013496,2]
[399832779,1766715038768,-244.0,0.00013496,2]
[399832780,1766715038777,-500.0,0.00013585,2]
[399832781,1766715038787,-805.433059,0.00013699,2]
[399832782,1766715038797,-160.0,0.00013699,2]
[399832783,1766715038807,-500.0,0.00013859,2]
[399832784,1766715038817,-700.0,0.00013918,2]
[399832785,1766715038827,-231.0,0.00014,2]
[399832786,1766715038838,-344.03563627,0.00014062,2]
[399832787,1766715038848,-500.0,0.00014108,2]
[399832788,1766715038858,-500.0,0.00014133,2]
[399832789,1766715038868,-700.0,0.00014157,2]
[399832790,1766715038879,-788.35,0.00014185,2]
[399832791,1766715038889,-500.0,0.00014236,2]
[399832792,1766715038900,-260.0,0.00014247,2]
[399832793,1766715038910,-500.0,0.00014407,2]
[399832794,1766715038920,-700.0,0.00014497,2]
[399832795,1766715038931,-472.48182482,0.00014621,2]
[399832796,1766715038943,-27.51817518,0.00014621,2]
[399832797,1766715038953,-500.0,0.00014621,2]
[399832798,1766715038963,-601.35995083,0.00014621,2]
[399832799,1766715038974,-181.46829618,0.00014621,2]
[399832800,1766715038984,-532.68446791,0.00014621,2]
[399832801,1766715038995,-500.0,0.00014621,2]
[399832802,1766715039006,-500.0,0.00014681,2]
[399832803,1766715039015,-700.0,0.00014792,2]
[399832804,1766715039025,-236.80088372,0.00014795,2]
[399832805,1766715039037,-123.19911628,0.00014795,2]
[399832806,1766715039047,-344.03563627,0.00014808,2]
[399832807,1766715039058,-1000.0,0.00014845,2]
[399832808,1766715039067,-492.0,0.00014845,2]
[399832809,1766715039077,-209.21713264,0.00014931,2]
[399832810,1766715039087,-150.0,0.00014931,2]
[399832811,1766715039097,-150.0,0.00014931,2]
[399832812,1766715039107,-500.0,0.00014931,2]
[399832813,1766715039117,-500.0,0.00014931,2]
[399832814,1766715039127,-158.70495126,0.00014931,2]
[399832815,1766715039137,-500.0,0.00014931,2]
[399832816,1766715039147,-500.0,0.00014931,2]
[399832817,1766715039158,-500.0,0.00014931,2]
[399832818,1766715039168,-500.0,0.00014931,2]
[399832819,1766715039179,-156.20205024,0.00014931,2]
[399832820,1766715039189,-150.0,0.00014931,2]
[399832821,1766715039199,-167.14347839,0.00014931,2]
[399832822,1766715039212,-332.85652161,0.00014931,2]
[399832823,1766715039222,-297.90873794,0.00014931,2]
[399832824,1766715039232,-150.0,0.00014931,2]
[399832825,1766715039242,-153.36636639,0.00014931,2]
[399832826,1766715039252,-214.38005911,0.00014931,2]
[399832827,1766715039262,-150.0,0.00014931,2]
[399832828,1766715039273,-875.94,0.00014932,2]
[399832829,1766715039283,-500.0,0.00014955,2]
[399832830,1766715039293,-150.0,0.00015068,2]
[399832831,1766715039303,-150.0,0.00015068,2]
[399832832,1766715039313,-500.0,0.00015068,2]
[399832833,1766715039323,-500.0,0.00015068,2]
[399832834,1766715039336,-500.0,0.00015068,2]
[399832835,1766715039345,-566.92676788,0.00015068,2]
[399832836,1766715039355,-500.0,0.00015068,2]
[399832837,1766715039365,-500.0,0.00015068,2]
[399832838,1766715039374,-150.0,0.00015068,2]
[399832839,1766715039384,-518.09008264,0.00015068,2]
[399832840,1766715039394,-150.0,0.00015068,2]
[399832841,1766715039405,-162.91773909,0.00015068,2]
[399832842,1766715039416,-150.0,0.00015205,2]
[399832843,1766715039426,-150.0,0.00015205,2]
[399832844,1766715039435,-500.0,0.00015205,2]